Cogmind - Beta 16.1 *** ADVENTURER MODE // 2026.02.18 @ 11:00:53 Player: Voldy Result: Destroyed by Y-45 Defender with Beam Rifle Performance ------------- Evolutions (0) 0 Regions Visited (2) 400 Robots Destroyed (7) 35 Value Destroyed (189) 189 Prototype IDs (0) 0 Alien Tech Used (0) 0 Bonus (0) 0 TOTAL SCORE: 624 Bonus ------- None Cogmind --------- Core Integrity 0/250 Matter 300/300 Energy 100/100 System Corruption 0% Temperature Cool (9) Movement Treading (160) Location -10/Mines Parts ------- > --- POWER (1) -------- (None) > --- PROPULSION (2) --- Light Treads > --- UTILITY (2) ------ Small Storage Unit > --- WEAPON (2) ------- (None) > --- INVENTORY (8) ---- Ion Engine Ion Engine Ion Engine Light Treads Signal Interpreter Small Laser Peak State ------------ > --- POWER ------------ Ion Engine > --- PROPULSION ------- Wheel Compact Wheel > --- UTILITY ---------- Small Storage Unit Tractor Beam > --- WEAPON ----------- EM Pulse Gun EM Pulse Gun > --- INVENTORY -------- Ion Engine Light Treads Light Treads Small Laser Small Laser [Rating: 7] Favorites ----------- Power Ion Engine Engine Ion Engine Propulsion Compact Wheel Treads Light Treads Leg Aluminum Leg Wheel Compact Wheel Flight Unit Flight Unit Utility Small Storage Unit Device Tractor Beam Storage Small Storage Unit Weapon EM Pulse Gun Energy Gun EM Pulse Gun Build | -11 -10 -10 ------- Run | Yrd Mat Min Slots Evolved . | . . . Power . | . . . Propulsion . | . . . Utility . | . . . Weapon . | . . . Parts Attached 7 | . 7 . Power . | . . . Engine . | . . . Core . | . . . Reactor . | . . . Propulsion 5 | . 5 . Treads 2 | . 2 . Leg . | . . . Wheel 2 | . 2 . Hover . | . . . Flight 1 | . 1 . Utility 1 | . 1 . Device 1 | . 1 . Storage . | . . . Processor . | . . . Hackware . | . . . Protection . | . . . Artifact . | . . . Weapon 1 | . 1 . Energy Gun 1 | . 1 . Energy Cannon . | . . . Ballistic Gun . | . . . Ballistic Cannon . | . . . Launcher . | . . . Special Weapon . | . . . Impact Weapon . | . . . Slashing Weapon . | . . . Piercing Weapon . | . . . Special Melee Weapon . | . . . Unidentified Prototypes . | . . . Parts Lost 7 | . 1 6 Power 1 | . . 1 Propulsion 2 | . . 2 Utility 1 | . . 1 Weapon 3 | . 1 2 Highest Loss Streak 4 | . 1 4 To Critical Strikes . | . . . Average Backups 6 | . 6 6 Power 2 | . 2 3 Propulsion 2 | . 2 1 Utility . | . . 1 Weapon 1 | . 1 1 Tool/Special . | . . . Unused Backups 8 | . 4 4 Power 2 | . . 2 Propulsion 4 | . 4 . Utility 1 | . . 1 Weapon 1 | . . 1 Tool/Special . | . . . Average Slot Usage (%) 92 | . 93 86 Engine 13 | . 14 12 Treads 1 | . . 7 Leg 1 | . 1 . Wheel 24 | . 25 19 Device 9 | . 8 12 Storage 14 | . 14 14 Energy Gun 25 | . 27 18 Peak Build Rating 7 | . 7 7 Average Rating 6 | . 6 5 On Entrance 6 | 6 6 7 Avg Prop Armor Cover (%) 4 | . . 4 Naked Turns . | . . . Heaviest Build 15 | 14 15 14 Greatest Support 40 | 20 40 26 Greatest Overweight (x) 3 | . 3 . Average Overweight (x) . | . . . Largest Inventory Capacity 8 | . 8 8 Average Capacity 8 | . 8 8 Most Carried 8 | . 8 7 Average Carried 6 | . 6 6 Final Capacity 8 | 8 8 8 Final Carried 7 | 6 7 6 Class Distribution -------------------- 100% | Mutant Dominant Class ---------------- Mutant | -10/Materials Mutant | -10/Mines Resources | -11 -10 -10 ----------- Run | Yrd Mat Min Matter Collected 296 | 200 86 10 Remotely 96 | . 86 10 Salvage Created 229 | . 229 . Parts 14 | . 14 . Haulers Intercepted . | . . . Recyclers Shooed 1 | . 1 . Parts Field Recycled . | . . . Retrieved Matter . | . . . Parts Self-Destructed . | . . . Prevented . | . . . Parts Restored . | . . . Kills | -11 -10 -10 ------- Run | Yrd Mat Min Combat Hostiles Destroyed 7 | . 7 . Guns 6 | . 6 . AOE 1 | . 1 . Classes Destroyed 2 | . 2 . Swarmer 3 | . 3 . Grunt 4 | . 4 . Best Kill Streak 3 | . 3 . Combat Bots Only 3 | . 3 . Max Kills in Single Turn 1 | . 1 . Gunslinging . | . . . Exploded 1 | . 1 . Melee . | . . . Uniques/NPCs Destroyed . | . . . Combat | -11 -10 -10 -------- Run | Yrd Mat Min Hostile Shots Fired 75 | . 31 44 Missed 21 | . 11 10 Hits 54 | . 20 34 Projectile 54 | . 20 34 AOE 9 | . . 9 Damage Taken 769 | . 192 577 Core 257 | . 27 230 Absorbed by Shields . | . . . Ignored by Resistances 221 | . 60 161 Core Remaining (%) 100 | 100 . . Volleys Fired 20 | . 19 1 Largest 2 | . 2 2 Hottest 80 | . 80 80 Shots Fired 39 | . 37 2 Gun 39 | . 37 2 Cannon . | . . . Launcher . | . . . Special . | . . . Kinetic . | . . . Thermal 6 | . 5 1 Explosive . | . . . Electromagnetic 33 | . 32 1 Robot Hit Streak 27 | . 27 . Robot Miss Streak 2 | . 1 2 Penetration Max . | . . . Secondary Targets 1 | . 1 . Max Gunslinging Chain 1 | . 1 . Shots Hit Robots 32 | . 32 . Core Hits 12 | . 12 . Critical Kills . | . . . Critical Parts Destroyed . | . . . Critical Strikes . | . . . Melee Attacks . | . . . Impact . | . . . Slashing . | . . . Piercing . | . . . Sneak Attacks . | . . . Combat Hostiles . | . . . Follow-up Attacks . | . . . Damage Inflicted 517 | . 517 . Guns 413 | . 413 . Cannons . | . . . Explosions 88 | . 88 . Melee . | . . . Ramming 16 | . 16 . Kinetic . | . . . Thermal 133 | . 133 . Explosive . | . . . Electromagnetic 368 | . 368 . Impact . | . . . Slashing . | . . . Piercing . | . . . Highest Corruption . | . . . Average Corruption . | . . . Corruption Purged . | . . . Corruption Blocked . | . . . Overload Shots . | . . . Overflow Damage . | . . . Projectiles . | . . . Explosions . | . . . Melee . | . . . Knockbacks . | . . . Impact . | . . . Kinetic . | . . . Secondary . | . . . Self-Inflicted Damage 37 | . 37 . Shots 1 | . 1 . Rammed 1 | . 1 . Targets Rammed 1 | . 1 . Kicked . | . . . Crushed . | . . . Highest Temperature 157 | . 157 24 Average Temperature 59 | . 61 16 Received Heat Transfer 243 | . 81 162 Siege Activations . | . . . Martial Activations . | . . . Shielding Activations . | . . . Robots Disrupted . | . . . Combat Hostiles . | . . . Robots Corrupted . | . . . Combat Hostiles . | . . . Parts Fried . | . . . Impact Corruptions . | . . . Robots Melted . | . . . Combat Hostiles . | . . . Parts Melted . | . . . Heat Transferred 250 | . 250 . Parts Sabotaged . | . . . Parts Stolen . | . . . Parts Stripped . | . . . Power Chain Reactions 3 | . 3 . Alert | -11 -10 -10 ------- Run | Yrd Mat Min Maximum Alert Level . | . . . Low Security (%) 100 | . 100 100 Level 1 . | . . . Level 2 . | . . . Level 3 . | . . . Level 4 . | . . . Level 5 . | . . . High Security . | . . . Max Security . | . . . Peak Influence 79 | . 79 45 Initial 6 | . . 6 Average 12 | . 13 9 Influence Increases 297 | . 252 45 Destroy 0b10 Robot/C 140 | . 140 . Destroy Leader 30 | . 30 . Successful Hack 14 | . 14 . Disable Machine 9 | . 9 . Destroy Structure 14 | . 14 . Lose Combat Pursuer 90 | . 45 45 Influence Decreases 297 | . 232 65 Entered New Map 14 | . . 14 Time Decay 105 | . 84 21 Lost Part 40 | . 10 30 Purge Threat 138 | . 138 . Squads Dispatched 1 | . 1 . Investigation 1 | . 1 . Extermination . | . . . Reinforcement . | . . . Assault . | . . . Garrison . | . . . Intercept . | . . . Searches Triggered . | . . . Construction Impeded . | . . . Haulers Reinforced . | . . . Active Scanning Responses . | . . . Cargo Convoy Interrupts . | . . . Stealth | -11 -10 -10 --------- Run | Yrd Mat Min Distress Signals 1 | . 1 . Communications Jammed . | . . . Distress Signals . | . . . Times Spotted 22 | . 13 9 Peak Tracking Total 6 | . 4 6 Tactical Retreats 3 | . 2 1 Traps | -11 -10 -10 ------- Run | Yrd Mat Min Traps Triggered 1 | . 1 . Indirectly . | . . . Trap Hack Attempts . | . . . Triggered . | . . . Disarmed 1 | . 1 . Reprogrammed . | . . . Reused . | . . . Traps Extracted . | . . . Installed . | . . . Triggered . | . . . Machines | -11 -10 -10 ---------- Run | Yrd Mat Min Machines Disabled 1 | . 1 . Max in Single Turn 1 | . 1 . Machines Repaired . | . . . Machines Dismantled . | . . . Machines Sabotaged . | . . . Overloaded Fab Kills . | . . . Hacking | -11 -10 -10 --------- Run | Yrd Mat Min Machines Accessed 5 | . 5 . Terminals 5 | . 5 . Fabricators . | . . . Repair Stations . | . . . Recycling Units . | . . . Scanalyzers . | . . . Garrison Access . | . . . Total Hacks 11 | . 11 . Successful 5 | . 5 . Failed 6 | . 6 . Catastrophic 1 | . 1 . Database Lockouts . | . . . Manual 5 | . 5 . Terminals 11 | . 11 . Fabricators . | . . . Repair Stations . | . . . Recycling Units . | . . . Scanalyzers . | . . . Garrison Access . | . . . Terminal Hacks 5 | . 5 . Unreport Threat 2 | . 2 . Disarm Traps 1 | . 1 . Registered Components 1 | . 1 . Zone Layout 1 | . 1 . Fabricator Hacks . | . . . Repair Station Hacks . | . . . Recycling Unit Hacks . | . . . Scanalyzer . | . . . Garrison Access Hacks . | . . . Unauthorized Hacks . | . . . Terminals . | . . . Fabricators . | . . . Repair Stations . | . . . Recycling Units . | . . . Scanalyzers . | . . . Garrison Access . | . . . Data Cores Recovered . | . . . Used . | . . . Hacking Detections 5 | . 5 . Full Trace Events . | . . . Feedback Events . | . . . Feedback Blocked . | . . . Robot Schematics Acquired . | . . . Robots Built . | . . . Authchips . | . . . Time . | . . . Total Robot Build Rating . | . . . Part Schematics Acquired . | . . . Parts Built . | . . . Authchips . | . . . Time . | . . . Total Part Build Rating . | . . . Part Studies Acquired . | . . . Parts Repaired . | . . . Time . | . . . Parts Recycled . | . . . Recycled Matter . | . . . Retrieved Matter . | . . . Retrieved Components . | . . . Parts Scanalyzed . | . . . Part Schematics Acquired . | . . . Parts Damaged . | . . . Bothacking | -11 -10 -10 ------------ Run | Yrd Mat Min Used RIF Installer . | . . . Robots Hacked . | . . . Non-combat . | . . . Combat . | . . . Robot Hacks Applied . | . . . Relay Couplers Released . | . . . Fabnet Peak Effective % . | . . . Robots Rewired . | . . . Allies Hacked . | . . . Hacks Repelled . | . . . Allies | -11 -10 -10 -------- Run | Yrd Mat Min Total Allies . | . . . Largest Group . | . . . Highest-Rated Group . | . . . Highest-Rated Ally . | . . . Total Orders . | . . . Ally Attacks . | . . . Total Damage . | . . . Kills . | . . . Allies Corrupted . | . . . Allies Melted . | . . . Intel | -11 -10 -10 ------- Run | Yrd Mat Min Active Infowar (turns) . | . . . Robot Analysis Total . | . . . Derelict Logs Recovered 2 | . . 2 Drone Launches . | . . . Drone Recoveries . | . . . Exploration | -11 -10 -10 ------------- Run | Yrd Mat Min Turns Passed 603 | . 496 107 Spaces Moved 528 | 1 441 86 Core . | . . . Treads 40 | . 4 36 Legs 19 | 1 18 . Wheels 466 | . 416 50 Hover . | . . . Flight 3 | . 3 . Fastest Speed 90 | 120 90 90 Average Speed 97 | 120 93 119 Slowest Speed 280 | 120 280 160 Overloaded Moves . | . . . Propulsion Burnouts . | . . . Robots Hopped . | . . . Potential Cave-ins . | . . . Cave-ins Triggered . | . . . Exploration Rate (%) 34 | 2 71 30 Regions Visited 2 Branch Regions 1 Pre-discovered Areas . | . . . Known Exits Taken . | . . . Unknown Exits Taken 2 | 1 1 . Scrap Searched 1 | . . 1 Spaces Dug . | . . . Terrain Destroyed 12 | . 12 . Melee . | . . . Projectile . | . . . AOE 12 | . 12 . Terrain Rammed . | . . . Walls Destroyed . | . . . Machines Disabled . | . . . Actions | -11 -10 -10 --------- Run | Yrd Mat Min Total 582 | . 494 88 Wait 9 | . 9 . Move 526 | . 440 86 Hop . | . . . Pick Up 6 | . 6 . Fast Attach . | . . . Attach 10 | . 9 1 Detach 7 | . 7 . Swap . | . . . Drop 3 | . 3 . Fire 20 | . 19 1 Melee . | . . . Ram 1 | . 1 . Kick . | . . . Crush . | . . . Escape Stasis . | . . . Rewire . | . . . Trap . | . . . Miscellaneous . | . . . Route ------- -11/Scrapyard -10/Materials (discovered 4 exits: [*Mat x3] / [*Min]) -10/Mines History --------- Turn | Location | Event 1 | -11/Scrapyard | Discovered new exit (range 0) 1 | -11/Scrapyard | Entered Materials 146 | -10/Materials | Discovered new exit (range 15) 152 | -10/Materials | Discovered new exit (range 3) 309 | -10/Materials | Build established: Mutant 379 | -10/Materials | Discovered new exit (range 4) 424 | -10/Materials | Discovered new exit (range 14) 497 | -10/Materials | Entered Mines 499 | -10/Mines | Assembled infested the area 538 | -10/Mines | Learned location of 1 exit from Materials 582 | -10/Mines | Learned Materials terminal intel 595 | -10/Mines | Core integrity fell below 50% 598 | -10/Mines | Core integrity fell below 20% 604 | -10/Mines | Destroyed by Y-45 Defender with Beam Rifle Last Messages --------------- 00538_ Acquired derelict log, extracted data. Data stored: Materials exits (x1). 00541_ Wheel destroyed. 00542_ Searching scrap... 00542_ Found 65 Matter. 00542_ Found Targeting Computer. 00542_ Found Datajack. 00542_ Found Flight Unit. 00542_ Found 44 Matter. 00547_ Acquired 10 matter. 00576_ K-01 Serf collects debris. 00582_ Acquired derelict log, extracted data. Data stored: Materials terminal intel. 00583_ K-01 Serf collects debris. 00592_ Sml. Laser destroyed. 00595_ Ion Engine destroyed. 00596_ Tractor Beam destroyed. 00596_ T-07 Excavator destroyed. 00598_ Com. Wheel destroyed. 00599_ The unstable cave ceiling collapses. Map ----- +----------------------------------------------------+ | ????????????????????## #???????????????????????? | | ????????????????????# ###?????????????????????? | | ????????????????????# # ##????????????????????? | | ????????????????????# #????????????????????? | | ????????????????????+ #????????????????????? | | ????????????????????+ ?# #????????????????????? | | ???###??????????????# # ?????????????????????? | | ???# ??????????????# #??????????????????????? | | ???# #?????????######## #??????????????????????? | | ???# ########### ####???????????????????? | | ???# %=%/! "%" #???????????????????? | | ???# ########## ## #### #???????????????????? | | ???# #????????## ### #??# #???????????????????? | | ???# #?????????# ###?# ##?# #????####???????????? | | ???# #?????????# #??## ### #???## ####????????? | | ???# #?###???#?# #### ## ##### ##?#?????? | | ??## ###T##?# ? ## """ # ### | | ??# #?# ? ? ## ##### """ | | ??# #?# ###?# ### #??## """ ??? | | ??#""" #?# #???# #?# #?## ####?????? | | ??#""" ### #???## #?# #?# ####????????? | | ??#""" ###### #?# #?# ##???????????? | | ??# ### # #### #?## #????????????? | | ??###### ##??# ## #??## #????????????? | | ???????# #????# * ## #???# ????????????? | | ???????# #????# Y = @ #???# ????????????? | | ???????# ###### ## #???# #????????????? | | ???????# ## #? ????####????????????? | | ???????# ### d # ????????????????????? | | ??????## # g # # ""????????????????????? | | ?????## g ### """???????????????????? | | ?????# #? """ ??????????????????? | | # ### k # ???????????????????? | | # #?# # ???????????????????? | | # ### ##? ? ???????????????????? | | ## ###??# ###?? ?????????????????????? | | ?####?????### ##???? ????????????????????? | | ????????????##### #????? ????????????????????? | | ????????????????# #????? ????????????????????? | | ????????????????## ##?????? ????????????????????? | | ?????????????????####????????????????????????????? | | ?????????????????????????????????????????????????? | | ?????????????????????????????????????????????????? | | ?????????????????????????????????????????????????? | | | | | | | | | | | | | +----------------------------------------------------+ Best States ------------- Heat Dissipation 25 Energy Generation 10 Energy Capacity 250 Matter Stores 300 Matter Capacity 300 Sight Range 16 Terrain Scan Density 10 Resistance: KI 20 Resistance: TH 20 Resistance: EX 20 Resistance: EM 20 Resistance: I 20 Resistance: S 20 Resistance: P 20 Evasion (%) 55 Recoil Reduction 1 Offensive Hacking 10 Item Schematics ----------------- None Robot Schematics ------------------ None Fabricated ------------ Nothing Repaired ---------- Nothing Studied --------- None Alien Tech Used ----------------- None Achievements -------------- None Challenges ------------ None Game ------ Seed DeflectorFieldPlating Manual? 0 Play Time 00:07:43 Cumulative 14.9 hours Start 2026.02.18 @ 10:53:22 End 2026.02.18 @ 11:00:53 Sessions 1 Manual Loads 0 Difficulty Adventurer Special Mode None Game No. 38 Rogue 28 Adventurer 10 Explorer 0 Win Type - Total 0 Types 0/0/0/0/0/0/0/0/0/0 Lore% 17 Gallery% 18 Achievement% 16 Wizard Run 0 Options --------- Layout 0 ASCII 0 Keyboard 1 Movement Numpad Keybinds 0 Fullscreen 2 Font 18/SmallcapsGlow Map View 76x50 Zoom Use 0% Tactical HUD 1 Map Filters NONE Filters NONE Steam 1 RUN: b18545ef-bd6c-4dcd-b8f7-6a6a69f26d16